[Event "Titled Tuesday Blitz August 15 Early 2023"]
[White "Kovalenko, Igor"]
[Black "Shuvalova, Polina"]
[WhiteFideId "14117908"]
[BlackFideId "24171760"]
[WhiteElo "2926"]
[BlackElo "2646"]
[Result "1-0"]
[Round "3"]
[TimeControl "180+1"]
[Date "2023.08.15"]
[WhiteClock "0:00:23"]
[BlackClock "0:00:00"]
[Board "26"]

1. c4 {[%clk 0:03:00]}  e6 {[%clk 0:02:59]} 2. Nf3 {[%clk 0:02:59]}  d5 {[%clk 0:03:00]} 3. g3 {[%clk 0:03:00]}  Nf6 {[%clk 0:02:59]} 4. Bg2 {[%clk 0:03:01]}  Be7 {[%clk 0:02:58]} 5. O-O {[%clk 0:03:02]}  O-O {[%clk 0:02:58]} 6. b3 {[%clk 0:03:00]}  b6 {[%clk 0:02:57]} 7. Bb2 {[%clk 0:03:00]}  Bb7 {[%clk 0:02:57]} 8. Ne5 {[%clk 0:03:00]}  Nbd7 {[%clk 0:02:55]} 9. Nxd7 {[%clk 0:02:59]}  Qxd7 {[%clk 0:02:55]} 10. d4 {[%clk 0:02:59]}  Rfd8 {[%clk 0:02:37]} 11. Qc2 {[%clk 0:02:58]}  Rac8 {[%clk 0:02:35]} 12. cxd5 {[%clk 0:02:55]}  Bxd5 {[%clk 0:02:33]} 13. e4 {[%clk 0:02:55]}  Bb7 {[%clk 0:02:31]} 14. Rd1 {[%clk 0:02:39]}  c5 {[%clk 0:02:27]} 15. d5 {[%clk 0:02:39]}  exd5 {[%clk 0:02:17]} 16. exd5 {[%clk 0:02:26]}  Ne8 {[%clk 0:01:45]} 17. Nc3 {[%clk 0:02:18]}  Bf6 {[%clk 0:01:44]} 18. h4 {[%clk 0:02:18]}  Nd6 {[%clk 0:01:41]} 19. Kh2 {[%clk 0:02:17]}  Qc7 {[%clk 0:01:34]} 20. Rac1 {[%clk 0:01:58]}  Re8 {[%clk 0:01:32]} 21. a4 {[%clk 0:01:55]}  a6 {[%clk 0:01:24]} 22. Ba3 {[%clk 0:01:13]}  h6 {[%clk 0:01:15]} 23. Ne2 {[%clk 0:01:10]}  a5 {[%clk 0:01:06]} 24. Nf4 {[%clk 0:01:07]}  Rcd8 {[%clk 0:00:57]} 25. Nh5 {[%clk 0:01:07]}  Be7 {[%clk 0:00:34]} 26. Bb2 {[%clk 0:01:06]}  Bf8 {[%clk 0:00:34]} 27. Qc3 {[%clk 0:00:52]}  f6 {[%clk 0:00:29]} 28. Qc2 {[%clk 0:00:48]}  Qf7 {[%clk 0:00:28]} 29. Nf4 {[%clk 0:00:48]}  Bc8 {[%clk 0:00:26]} 30. Ne6 {[%clk 0:00:47]}  Rd7 {[%clk 0:00:17]} 31. f4 {[%clk 0:00:47]}  f5 {[%clk 0:00:09]} 32. Re1 {[%clk 0:00:35]}  Rde7 {[%clk 0:00:09]} 33. Re5 {[%clk 0:00:32]}  Bxe6 {[%clk 0:00:04]} 34. dxe6 {[%clk 0:00:32]}  Qg6 {[%clk 0:00:04]} 35. Rce1 {[%clk 0:00:23]}  Kh8 {[%clk 0:00:03]} 36. Bd5 {[%clk 0:00:23]}  Ne4 {[%clk 0:00:03]} 37. R1xe4 {[%clk 0:00:23]}  fxe4 {[%clk 0:00:04]} 38. h5 {[%clk 0:00:21]}  Qg4 {[%clk 0:00:03]} 39. Qxe4 {[%clk 0:00:21]}  Qd1 {[%clk 0:00:02]} 40. Bc4 {[%clk 0:00:21]}  Qd2+ {[%clk 0:00:02]} 41. Qe2 {[%clk 0:00:20]}  Qxe2+ {[%clk 0:00:02]} 42. Rxe2 {[%clk 0:00:21]}  Rd8 {[%clk 0:00:02]} 43. Kh3 {[%clk 0:00:20]}  Rc7 {[%clk 0:00:03]} 44. Kg4 {[%clk 0:00:20]}  Be7 {[%clk 0:00:03]} 45. Kf5 {[%clk 0:00:20]}  Kh7 {[%clk 0:00:04]} 46. Be5 {[%clk 0:00:20]}  Rf8+ {[%clk 0:00:03]} 47. Ke4 {[%clk 0:00:20]}  Rcc8 {[%clk 0:00:04]} 48. Rd2 {[%clk 0:00:20]}  Rcd8 {[%clk 0:00:04]} 49. Rd7 {[%clk 0:00:21]}  Rxd7 {[%clk 0:00:03]} 50. exd7 {[%clk 0:00:22]}  Rd8 {[%clk 0:00:03]} 51. Be6 {[%clk 0:00:22]}  Bf6 {[%clk 0:00:02]} 52. Bxf6 {[%clk 0:00:22]}  gxf6 {[%clk 0:00:02]} 53. Kd5 {[%clk 0:00:23]}  Kg7 {[%clk 0:00:01]} 54. Kd6 {[%clk 0:00:23]}  Kf8 {[%clk 0:00:01]} 55. g4 {[%clk 0:00:23]}  c4 {[%clk 0:00:00]} 56. Bxc4 {[%clk 0:00:23]} 1-0


[Site "https://www.chess.com"]

[Event "Titled Tuesday Blitz August 15 Early 2023"]
[White "Nefedov, Sergey"]
[Black "Drygalov, Andrey"]
[WhiteFideId "24113417"]
[BlackFideId "24171735"]
[WhiteElo "2641"]
[BlackElo "2924"]
[Result "0-1"]
[Round "3"]
[TimeControl "180+1"]
[Date "2023.08.15"]
[WhiteClock "0:00:00"]
[BlackClock "0:00:11"]
[Board "27"]

1. d4 {[%clk 0:03:00]}  Nf6 {[%clk 0:02:59]} 2. Nf3 {[%clk 0:03:00]}  d5 {[%clk 0:02:59]} 3. c4 {[%clk 0:03:00]}  e6 {[%clk 0:02:59]} 4. Nc3 {[%clk 0:03:00]}  c6 {[%clk 0:03:00]} 5. Bg5 {[%clk 0:02:59]}  h6 {[%clk 0:03:00]} 6. Bxf6 {[%clk 0:02:59]}  Qxf6 {[%clk 0:03:00]} 7. Qb3 {[%clk 0:03:00]}  Nd7 {[%clk 0:02:46]} 8. e4 {[%clk 0:02:59]}  dxe4 {[%clk 0:02:45]} 9. Nxe4 {[%clk 0:03:00]}  Qf4 {[%clk 0:02:46]} 10. Bd3 {[%clk 0:03:00]}  e5 {[%clk 0:02:41]} 11. O-O {[%clk 0:02:16]}  Be7 {[%clk 0:02:36]} 12. Ng3 {[%clk 0:02:09]}  exd4 {[%clk 0:02:25]} 13. Rfe1 {[%clk 0:01:59]}  Nc5 {[%clk 0:02:23]} 14. Qc2 {[%clk 0:01:43]}  Be6 {[%clk 0:02:16]} 15. b4 {[%clk 0:01:38]}  Nxd3 {[%clk 0:02:05]} 16. Qxd3 {[%clk 0:01:38]}  O-O {[%clk 0:01:56]} 17. Re4 {[%clk 0:01:22]}  Qf6 {[%clk 0:01:41]} 18. Nxd4 {[%clk 0:01:06]}  Bxb4 {[%clk 0:01:38]} 19. Rb1 {[%clk 0:01:06]}  Bc5 {[%clk 0:01:37]} 20. Nxe6 {[%clk 0:00:31]}  fxe6 {[%clk 0:01:29]} 21. Rf1 {[%clk 0:00:17]}  Rad8 {[%clk 0:00:51]} 22. Qe2 {[%clk 0:00:16]}  Qc3 {[%clk 0:00:50]} 23. Rg4 {[%clk 0:00:13]}  Rde8 {[%clk 0:00:21]} 24. Ne4 {[%clk 0:00:04]}  Qe5 {[%clk 0:00:21]} 25. Qd3 {[%clk 0:00:01]}  Bd4 {[%clk 0:00:19]} 26. Qh3 {[%clk 0:00:01]}  h5 {[%clk 0:00:13]} 27. Kh1 {[%clk 0:00:02]}  hxg4 {[%clk 0:00:12]} 28. Qxg4 {[%clk 0:00:01]}  Qf5 {[%clk 0:00:12]} 29. Qe2 {[%clk 0:00:00]}  Be5 {[%clk 0:00:11]} 0-1


[Site "https://www.chess.com"]

[Event "Titled Tuesday Blitz August 15 Early 2023"]
[White "Perez Ponsa, Federico"]
[Black "Arias, Juan Cruz"]
[WhiteFideId "117927"]
[BlackFideId "118540"]
[WhiteElo "2922"]
[BlackElo "2638"]
[Result "1-0"]
[Round "3"]
[TimeControl "180+1"]
[Date "2023.08.15"]
[WhiteClock "0:00:08"]
[BlackClock "0:00:00"]
[Board "28"]

1. e4 {[%clk 0:02:44]}  c6 {[%clk 0:02:58]} 2. Nf3 {[%clk 0:02:45]}  d5 {[%clk 0:02:59]} 3. Nc3 {[%clk 0:02:46]}  dxe4 {[%clk 0:02:58]} 4. Nxe4 {[%clk 0:02:46]}  Nf6 {[%clk 0:02:59]} 5. Qe2 {[%clk 0:02:47]}  Nxe4 {[%clk 0:02:59]} 6. Qxe4 {[%clk 0:02:48]}  Nd7 {[%clk 0:02:50]} 7. Bc4 {[%clk 0:02:47]}  Nf6 {[%clk 0:02:50]} 8. Ne5 {[%clk 0:02:47]}  e6 {[%clk 0:02:50]} 9. Qe2 {[%clk 0:02:48]}  b5 {[%clk 0:02:50]} 10. Bd3 {[%clk 0:02:48]}  Qc7 {[%clk 0:02:50]} 11. b3 {[%clk 0:02:48]}  Bd6 {[%clk 0:02:50]} 12. Bb2 {[%clk 0:02:49]}  Bb7 {[%clk 0:02:40]} 13. O-O {[%clk 0:02:48]}  a6 {[%clk 0:02:33]} 14. Rae1 {[%clk 0:02:41]}  O-O {[%clk 0:02:19]} 15. f4 {[%clk 0:02:32]}  c5 {[%clk 0:02:17]} 16. Ng4 {[%clk 0:02:26]}  Nxg4 {[%clk 0:01:59]} 17. Qxg4 {[%clk 0:02:27]}  f5 {[%clk 0:01:52]} 18. Qg5 {[%clk 0:02:11]}  c4 {[%clk 0:01:39]} 19. Be2 {[%clk 0:01:47]}  Rae8 {[%clk 0:01:39]} 20. bxc4 {[%clk 0:01:44]}  bxc4 {[%clk 0:01:39]} 21. Bh5 {[%clk 0:01:44]}  Re7 {[%clk 0:01:35]} 22. Bc3 {[%clk 0:01:38]}  Bd5 {[%clk 0:01:32]} 23. h3 {[%clk 0:01:31]}  Qc6 {[%clk 0:01:26]} 24. Bf3 {[%clk 0:01:28]}  Rff7 {[%clk 0:00:51]} 25. Bxd5 {[%clk 0:00:49]}  exd5 {[%clk 0:00:51]} 26. Bd4 {[%clk 0:00:42]}  Bc5 {[%clk 0:00:48]} 27. Bxc5 {[%clk 0:00:39]}  Qxc5+ {[%clk 0:00:49]} 28. Kh2 {[%clk 0:00:39]}  h6 {[%clk 0:00:43]} 29. Qg6 {[%clk 0:00:38]}  Rf6 {[%clk 0:00:39]} 30. Qg3 {[%clk 0:00:38]}  Rfe6 {[%clk 0:00:35]} 31. Rb1 {[%clk 0:00:35]}  Kh7 {[%clk 0:00:33]} 32. Qf3 {[%clk 0:00:32]}  Qd4 {[%clk 0:00:32]} 33. Rf2 {[%clk 0:00:31]}  Re4 {[%clk 0:00:31]} 34. c3 {[%clk 0:00:30]}  Qd3 {[%clk 0:00:29]} 35. Qxd3 {[%clk 0:00:25]}  cxd3 {[%clk 0:00:30]} 36. Rf3 {[%clk 0:00:23]}  Re2 {[%clk 0:00:19]} 37. Rxd3 {[%clk 0:00:22]}  Rf2 {[%clk 0:00:20]} 38. Rb4 {[%clk 0:00:16]}  Ree2 {[%clk 0:00:18]} 39. Rg3 {[%clk 0:00:17]}  Re7 {[%clk 0:00:15]} 40. Rd4 {[%clk 0:00:16]}  Rd7 {[%clk 0:00:15]} 41. Re3 {[%clk 0:00:12]}  g5 {[%clk 0:00:06]} 42. fxg5 {[%clk 0:00:05]}  hxg5 {[%clk 0:00:07]} 43. Re5 {[%clk 0:00:05]}  Rb7 {[%clk 0:00:03]} 44. Kg1 {[%clk 0:00:04]}  Rf4 {[%clk 0:00:03]} 45. Rxf4 {[%clk 0:00:04]}  gxf4 {[%clk 0:00:04]} 46. Rxd5 {[%clk 0:00:05]}  Rb1+ {[%clk 0:00:04]} 47. Kf2 {[%clk 0:00:06]}  Rb2 {[%clk 0:00:05]} 48. a4 {[%clk 0:00:06]}  Kg6 {[%clk 0:00:04]} 49. a5 {[%clk 0:00:06]}  Kg5 {[%clk 0:00:04]} 50. Kf3 {[%clk 0:00:06]}  Ra2 {[%clk 0:00:05]} 51. h4+ {[%clk 0:00:07]}  Kxh4 {[%clk 0:00:04]} 52. Kxf4 {[%clk 0:00:07]}  Ra4+ {[%clk 0:00:02]} 53. Kxf5 {[%clk 0:00:08]}  Kg3 {[%clk 0:00:02]} 54. d3 {[%clk 0:00:07]}  Kxg2 {[%clk 0:00:03]} 55. c4 {[%clk 0:00:07]}  Kf3 {[%clk 0:00:03]} 56. Ke6 {[%clk 0:00:07]}  Ke3 {[%clk 0:00:04]} 57. c5 {[%clk 0:00:08]}  Rxa5 {[%clk 0:00:00]} 58. c6 {[%clk 0:00:08]} 1-0


[Site "https://www.chess.com"]

[Event "Titled Tuesday Blitz August 15 Early 2023"]
[White "Kuzhilniy, Oleksandr"]
[Black "Zhigalko, Sergei"]
[WhiteFideId "34110500"]
[BlackFideId "13502956"]
[WhiteElo "2631"]
[BlackElo "2915"]
[Result "0-1"]
[Round "3"]
[TimeControl "180+1"]
[Date "2023.08.15"]
[WhiteClock "0:00:17"]
[BlackClock "0:00:03"]
[Board "30"]

1. b3 {[%clk 0:03:00]}  e5 {[%clk 0:02:59]} 2. Bb2 {[%clk 0:03:01]}  d6 {[%clk 0:02:56]} 3. c4 {[%clk 0:03:00]}  Nf6 {[%clk 0:02:56]} 4. e3 {[%clk 0:02:58]}  c6 {[%clk 0:02:51]} 5. d4 {[%clk 0:02:55]}  e4 {[%clk 0:02:51]} 6. d5 {[%clk 0:02:54]}  Na6 {[%clk 0:02:44]} 7. Nc3 {[%clk 0:02:51]}  Bf5 {[%clk 0:02:33]} 8. Nge2 {[%clk 0:02:38]}  Rc8 {[%clk 0:02:18]} 9. Ng3 {[%clk 0:02:12]}  Bg6 {[%clk 0:02:18]} 10. dxc6 {[%clk 0:02:06]}  bxc6 {[%clk 0:02:13]} 11. Be2 {[%clk 0:02:00]}  Be7 {[%clk 0:02:05]} 12. O-O {[%clk 0:01:55]}  O-O {[%clk 0:02:05]} 13. h4 {[%clk 0:01:56]}  h6 {[%clk 0:02:04]} 14. h5 {[%clk 0:01:56]}  Bh7 {[%clk 0:02:04]} 15. Qd4 {[%clk 0:01:55]}  Nc5 {[%clk 0:01:55]} 16. Rfd1 {[%clk 0:01:51]}  a5 {[%clk 0:01:46]} 17. Rac1 {[%clk 0:01:44]}  Qc7 {[%clk 0:01:38]} 18. Qd2 {[%clk 0:01:24]}  Rfd8 {[%clk 0:01:28]} 19. Ba3 {[%clk 0:01:20]}  Qa7 {[%clk 0:01:25]} 20. Qc2 {[%clk 0:01:13]}  Nd3 {[%clk 0:01:03]} 21. Bxd3 {[%clk 0:01:10]}  exd3 {[%clk 0:01:03]} 22. Qd2 {[%clk 0:01:10]}  d5 {[%clk 0:00:52]} 23. Bxe7 {[%clk 0:01:07]}  Qxe7 {[%clk 0:00:53]} 24. cxd5 {[%clk 0:00:56]}  cxd5 {[%clk 0:00:50]} 25. f3 {[%clk 0:00:50]}  Qe5 {[%clk 0:00:40]} 26. Kf2 {[%clk 0:00:49]}  Nxh5 {[%clk 0:00:27]} 27. f4 {[%clk 0:00:43]}  Nxf4 {[%clk 0:00:19]} 28. exf4 {[%clk 0:00:44]}  Qd4+ {[%clk 0:00:19]} 29. Qe3 {[%clk 0:00:45]}  Qxe3+ {[%clk 0:00:20]} 30. Kxe3 {[%clk 0:00:45]}  d4+ {[%clk 0:00:20]} 31. Kd2 {[%clk 0:00:45]}  dxc3+ {[%clk 0:00:20]} 32. Rxc3 {[%clk 0:00:45]}  Rxc3 {[%clk 0:00:20]} 33. Kxc3 {[%clk 0:00:46]}  Rc8+ {[%clk 0:00:21]} 34. Kd4 {[%clk 0:00:45]}  Rc2 {[%clk 0:00:14]} 35. Ne4 {[%clk 0:00:44]}  Bxe4 {[%clk 0:00:09]} 36. Kxe4 {[%clk 0:00:44]}  Rxa2 {[%clk 0:00:05]} 37. g4 {[%clk 0:00:23]}  d2 {[%clk 0:00:05]} 38. Kd3 {[%clk 0:00:20]}  g6 {[%clk 0:00:03]} 39. Rg1 {[%clk 0:00:15]}  Kg7 {[%clk 0:00:02]} 40. g5 {[%clk 0:00:16]}  hxg5 {[%clk 0:00:02]} 41. fxg5 {[%clk 0:00:17]}  Rb2 {[%clk 0:00:02]} 42. Kc3 {[%clk 0:00:17]}  Ra2 {[%clk 0:00:02]} 43. Rd1 {[%clk 0:00:17]}  Kf8 {[%clk 0:00:01]} 44. Kc4 {[%clk 0:00:17]}  Ke7 {[%clk 0:00:02]} 45. Kd5 {[%clk 0:00:17]}  Kd7 {[%clk 0:00:02]} 46. Kc5 {[%clk 0:00:16]}  Ke6 {[%clk 0:00:02]} 47. Kd4 {[%clk 0:00:16]}  Kf5 {[%clk 0:00:03]} 48. Kc3 {[%clk 0:00:16]}  Kxg5 {[%clk 0:00:03]} 49. Rxd2 {[%clk 0:00:16]}  Rxd2 {[%clk 0:00:02]} 50. Kxd2 {[%clk 0:00:17]}  f5 {[%clk 0:00:03]} 0-1


[Site "https://www.chess.com"]

[Event "Titled Tuesday Blitz August 15 Early 2023"]
[White "Demchenko, Anton"]
[Black "Dobrikov, Marco"]
[WhiteFideId "4160258"]
[BlackFideId "12950378"]
[WhiteElo "2914"]
[BlackElo "2605"]
[Result "1-0"]
[Round "3"]
[TimeControl "180+1"]
[Date "2023.08.15"]
[WhiteClock "0:00:53"]
[BlackClock "0:00:21"]
[Board "31"]

1. e4 {[%clk 0:02:56]}  e5 {[%clk 0:02:59]} 2. Nf3 {[%clk 0:02:55]}  Nc6 {[%clk 0:02:59]} 3. Bc4 {[%clk 0:02:55]}  Nf6 {[%clk 0:02:59]} 4. d3 {[%clk 0:02:56]}  h6 {[%clk 0:02:58]} 5. a4 {[%clk 0:02:53]}  d6 {[%clk 0:02:57]} 6. c3 {[%clk 0:02:52]}  g5 {[%clk 0:02:57]} 7. a5 {[%clk 0:02:49]}  a6 {[%clk 0:02:56]} 8. Qb3 {[%clk 0:02:49]}  Qe7 {[%clk 0:02:55]} 9. h4 {[%clk 0:02:49]}  g4 {[%clk 0:02:54]} 10. Nh2 {[%clk 0:02:49]}  Bg7 {[%clk 0:02:54]} 11. Nf1 {[%clk 0:02:49]}  O-O {[%clk 0:02:22]} 12. Ng3 {[%clk 0:02:48]}  Be6 {[%clk 0:02:22]} 13. Bxe6 {[%clk 0:02:25]}  fxe6 {[%clk 0:02:22]} 14. Qxb7 {[%clk 0:02:22]}  Qd7 {[%clk 0:02:22]} 15. Qb3 {[%clk 0:02:22]}  Rab8 {[%clk 0:02:17]} 16. Qa4 {[%clk 0:02:21]}  Rb5 {[%clk 0:02:16]} 17. b4 {[%clk 0:02:17]}  d5 {[%clk 0:02:03]} 18. Na3 {[%clk 0:02:11]}  Rbb8 {[%clk 0:02:03]} 19. O-O {[%clk 0:02:11]}  Qd6 {[%clk 0:01:40]} 20. Be3 {[%clk 0:01:34]}  d4 {[%clk 0:01:25]} 21. Nc4 {[%clk 0:01:32]}  Qd7 {[%clk 0:01:25]} 22. Bd2 {[%clk 0:01:25]}  dxc3 {[%clk 0:01:13]} 23. Bxc3 {[%clk 0:01:25]}  Qxd3 {[%clk 0:01:14]} 24. Qxc6 {[%clk 0:01:24]}  Qxc3 {[%clk 0:01:14]} 25. Qxe6+ {[%clk 0:01:23]}  Kh8 {[%clk 0:01:15]} 26. Nxe5 {[%clk 0:01:23]}  Rfe8 {[%clk 0:01:10]} 27. Ng6+ {[%clk 0:01:23]}  Kh7 {[%clk 0:01:10]} 28. Qf5 {[%clk 0:01:23]}  Rb5 {[%clk 0:01:05]} 29. e5 {[%clk 0:01:21]}  Kg8 {[%clk 0:00:55]} 30. Rac1 {[%clk 0:01:14]}  Qxb4 {[%clk 0:00:41]} 31. Rxc7 {[%clk 0:01:15]}  Qxa5 {[%clk 0:00:21]} 32. Rxg7+ {[%clk 0:01:14]}  Kxg7 {[%clk 0:00:21]} 33. Qxf6+ {[%clk 0:01:15]}  Kg8 {[%clk 0:00:22]} 34. Ne7+ {[%clk 0:01:14]}  Rxe7 {[%clk 0:00:22]} 35. Qxe7 {[%clk 0:01:15]}  Rxe5 {[%clk 0:00:23]} 36. Qf6 {[%clk 0:01:12]}  Kh7 {[%clk 0:00:21]} 37. h5 {[%clk 0:01:09]}  Qd5 {[%clk 0:00:20]} 38. Qg6+ {[%clk 0:01:08]}  Kh8 {[%clk 0:00:20]} 39. Qxh6+ {[%clk 0:01:09]}  Kg8 {[%clk 0:00:21]} 40. Rc1 {[%clk 0:01:06]}  Qe6 {[%clk 0:00:19]} 41. Qd2 {[%clk 0:01:02]}  a5 {[%clk 0:00:19]} 42. Rb1 {[%clk 0:01:01]}  a4 {[%clk 0:00:19]} 43. Rb8+ {[%clk 0:00:57]}  Kg7 {[%clk 0:00:19]} 44. Qd8 {[%clk 0:00:57]}  Qe7 {[%clk 0:00:13]} 45. Nf5+ {[%clk 0:00:55]}  Kf6 {[%clk 0:00:05]} 46. Nxe7 {[%clk 0:00:55]}  g3 {[%clk 0:00:06]} 47. Nc6+ {[%clk 0:00:54]}  Kf5 {[%clk 0:00:03]} 48. Qd3+ {[%clk 0:00:54]}  Re4 {[%clk 0:00:03]} 49. Rf8+ {[%clk 0:00:54]}  Ke6 {[%clk 0:00:03]} 50. Qxe4+ {[%clk 0:00:54]}  Kd7 {[%clk 0:00:03]} 51. Rf7+ {[%clk 0:00:54]}  Kc8 {[%clk 0:00:04]} 52. fxg3 {[%clk 0:00:53]}  a3 {[%clk 0:00:04]} 53. Nd4 {[%clk 0:00:52]}  a2 {[%clk 0:00:05]} 54. Qe6+ {[%clk 0:00:50]}  Kb8 {[%clk 0:00:05]} 55. Qb6+ {[%clk 0:00:50]}  Kc8 {[%clk 0:00:05]} 56. Qa6+ {[%clk 0:00:50]}  Kd8 {[%clk 0:00:06]} 57. Qxa2 {[%clk 0:00:50]}  Ke8 {[%clk 0:00:06]} 58. h6 {[%clk 0:00:49]}  Kd8 {[%clk 0:00:06]} 59. h7 {[%clk 0:00:50]}  Ke8 {[%clk 0:00:07]} 60. g4 {[%clk 0:00:50]}  Kd8 {[%clk 0:00:08]} 61. g5 {[%clk 0:00:51]}  Ke8 {[%clk 0:00:09]} 62. g6 {[%clk 0:00:52]}  Kd8 {[%clk 0:00:10]} 63. g7 {[%clk 0:00:52]}  Ke8 {[%clk 0:00:11]} 64. g4 {[%clk 0:00:53]}  Kd8 {[%clk 0:00:12]} 65. g5 {[%clk 0:00:53]}  Kc8 {[%clk 0:00:13]} 66. g6 {[%clk 0:00:54]}  Kd8 {[%clk 0:00:14]} 67. Kg2 {[%clk 0:00:55]}  Ke8 {[%clk 0:00:14]} 68. Kg3 {[%clk 0:00:55]}  Kd8 {[%clk 0:00:15]} 69. Kf4 {[%clk 0:00:56]}  Ke8 {[%clk 0:00:16]} 70. Ke5 {[%clk 0:00:57]}  Kd8 {[%clk 0:00:17]} 71. Kd6 {[%clk 0:00:57]}  Ke8 {[%clk 0:00:18]} 72. Qd5 {[%clk 0:00:57]}  Kd8 {[%clk 0:00:19]} 73. Nf3 {[%clk 0:00:57]}  Ke8 {[%clk 0:00:20]} 74. Ne5 {[%clk 0:00:58]}  Kd8 {[%clk 0:00:21]} 75. h8=Q# {[%clk 0:00:53]} 1-0


[Site "https://www.chess.com"]

[Event "Titled Tuesday Blitz August 15 Early 2023"]
[White "Manukyan, Sargis A."]
[Black "Grigorjev, Iljya"]
[WhiteFideId "13303970"]
[BlackFideId "24159565"]
[WhiteElo "2598"]
[BlackElo "2910"]
[Result "0-1"]
[Round "3"]
[TimeControl "180+1"]
[Date "2023.08.15"]
[WhiteClock "0:00:06"]
[BlackClock "0:00:32"]
[Board "32"]

1. d4 {[%clk 0:03:00]}  Nf6 {[%clk 0:02:59]} 2. c4 {[%clk 0:03:01]}  g6 {[%clk 0:03:00]} 3. Nc3 {[%clk 0:03:02]}  d5 {[%clk 0:03:00]} 4. Bf4 {[%clk 0:02:55]}  Bg7 {[%clk 0:03:00]} 5. e3 {[%clk 0:02:55]}  O-O {[%clk 0:03:01]} 6. Rc1 {[%clk 0:02:55]}  c5 {[%clk 0:02:52]} 7. dxc5 {[%clk 0:02:56]}  Ne4 {[%clk 0:02:38]} 8. cxd5 {[%clk 0:02:51]}  Nxc3 {[%clk 0:02:34]} 9. bxc3 {[%clk 0:02:50]}  Qa5 {[%clk 0:02:32]} 10. Ne2 {[%clk 0:02:37]}  Rd8 {[%clk 0:02:20]} 11. e4 {[%clk 0:02:29]}  Na6 {[%clk 0:02:17]} 12. Be3 {[%clk 0:02:26]}  Nxc5 {[%clk 0:02:15]} 13. Bxc5 {[%clk 0:02:24]}  Qxc5 {[%clk 0:02:16]} 14. Nd4 {[%clk 0:02:25]}  e6 {[%clk 0:02:12]} 15. dxe6 {[%clk 0:02:02]}  Bxe6 {[%clk 0:02:12]} 16. Be2 {[%clk 0:01:53]}  Bxa2 {[%clk 0:02:11]} 17. O-O {[%clk 0:01:52]}  Bc4 {[%clk 0:02:07]} 18. Qa4 {[%clk 0:01:38]}  b5 {[%clk 0:01:55]} 19. Qc2 {[%clk 0:01:31]}  Bxd4 {[%clk 0:01:50]} 20. cxd4 {[%clk 0:01:30]}  Rxd4 {[%clk 0:01:51]} 21. Rfe1 {[%clk 0:01:19]}  Rad8 {[%clk 0:01:47]} 22. e5 {[%clk 0:01:02]}  Qxe5 {[%clk 0:01:14]} 23. Bxc4 {[%clk 0:00:57]}  Rxc4 {[%clk 0:01:15]} 24. Rxe5 {[%clk 0:00:39]}  Rxc2 {[%clk 0:01:14]} 25. Ra1 {[%clk 0:00:39]}  Rcd2 {[%clk 0:01:01]} 26. Ree1 {[%clk 0:00:29]}  R8d7 {[%clk 0:00:55]} 27. g3 {[%clk 0:00:30]}  Rc2 {[%clk 0:00:49]} 28. Kg2 {[%clk 0:00:30]}  Rdd2 {[%clk 0:00:48]} 29. Rxa7 {[%clk 0:00:24]}  Rxf2+ {[%clk 0:00:48]} 30. Kh3 {[%clk 0:00:23]}  Rxh2+ {[%clk 0:00:45]} 31. Kg4 {[%clk 0:00:23]}  h5+ {[%clk 0:00:44]} 32. Kg5 {[%clk 0:00:19]}  Kg7 {[%clk 0:00:44]} 33. Re5 {[%clk 0:00:16]}  Rc4 {[%clk 0:00:40]} 34. Rxf7+ {[%clk 0:00:08]}  Kxf7 {[%clk 0:00:38]} 35. g4 {[%clk 0:00:08]}  Rxg4+ {[%clk 0:00:35]} 36. Kh6 {[%clk 0:00:08]}  b4 {[%clk 0:00:34]} 37. Rb5 {[%clk 0:00:09]}  Rb2 {[%clk 0:00:34]} 38. Rb7+ {[%clk 0:00:09]}  Ke6 {[%clk 0:00:34]} 39. Rb6+ {[%clk 0:00:08]}  Kd5 {[%clk 0:00:35]} 40. Rb5+ {[%clk 0:00:09]}  Kc4 {[%clk 0:00:35]} 41. Rb8 {[%clk 0:00:10]}  b3 {[%clk 0:00:36]} 42. Rc8+ {[%clk 0:00:10]}  Kd3 {[%clk 0:00:36]} 43. Rd8+ {[%clk 0:00:11]}  Kc2 {[%clk 0:00:37]} 44. Rc8+ {[%clk 0:00:11]}  Kb1 {[%clk 0:00:38]} 45. Rf8 {[%clk 0:00:11]}  Rc2 {[%clk 0:00:37]} 46. Rf3 {[%clk 0:00:10]}  b2 {[%clk 0:00:37]} 47. Rf7 {[%clk 0:00:09]}  Ra4 {[%clk 0:00:36]} 48. Rf1+ {[%clk 0:00:07]}  Ka2 {[%clk 0:00:36]} 49. Rf3 {[%clk 0:00:05]}  b1=Q {[%clk 0:00:37]} 50. Rg3 {[%clk 0:00:05]}  h4 {[%clk 0:00:37]} 51. Rg5 {[%clk 0:00:05]}  h3 {[%clk 0:00:37]} 52. Kg7 {[%clk 0:00:05]}  h2 {[%clk 0:00:37]} 53. Kh7 {[%clk 0:00:06]}  h1=Q+ {[%clk 0:00:38]} 54. Kg7 {[%clk 0:00:06]}  Rc7+ {[%clk 0:00:38]} 55. Kf6 {[%clk 0:00:06]}  Qb6+ {[%clk 0:00:38]} 56. Ke5 {[%clk 0:00:06]}  Rc5# {[%clk 0:00:32]} 0-1


[Site "https://www.chess.com"]

[Event "Titled Tuesday Blitz August 15 Early 2023"]
[White "Ter-Sahakyan, Samvel"]
[Black "Ansh M Shah"]
[WhiteFideId "13302531"]
[BlackFideId "25033379"]
[WhiteElo "2847"]
[BlackElo "2528"]
[Result "1-0"]
[Round "3"]
[TimeControl "180+1"]
[Date "2023.08.15"]
[WhiteClock "0:01:39"]
[BlackClock "0:01:39"]
[Board "39"]

1. c4 {[%clk 0:03:00]}  Nf6 {[%clk 0:03:00]} 2. Nc3 {[%clk 0:02:59]}  e6 {[%clk 0:02:59]} 3. e4 {[%clk 0:02:58]}  d6 {[%clk 0:02:51]} 4. d4 {[%clk 0:02:58]}  g6 {[%clk 0:02:50]} 5. Nf3 {[%clk 0:02:54]}  Bg7 {[%clk 0:02:51]} 6. Be2 {[%clk 0:02:54]}  O-O {[%clk 0:02:51]} 7. O-O {[%clk 0:02:54]}  c5 {[%clk 0:02:50]} 8. dxc5 {[%clk 0:02:53]}  dxc5 {[%clk 0:02:50]} 9. Qxd8 {[%clk 0:02:23]}  Rxd8 {[%clk 0:02:51]} 10. e5 {[%clk 0:02:23]}  Nfd7 {[%clk 0:02:49]} 11. Bg5 {[%clk 0:02:20]}  f6 {[%clk 0:02:34]} 12. exf6 {[%clk 0:02:19]}  Bxf6 {[%clk 0:02:34]} 13. Rad1 {[%clk 0:02:08]}  Nc6 {[%clk 0:02:34]} 14. Ne4 {[%clk 0:01:58]}  Bxg5 {[%clk 0:02:32]} 15. Nfxg5 {[%clk 0:01:59]}  Nde5 {[%clk 0:02:09]} 16. Rxd8+ {[%clk 0:01:55]}  Nxd8 {[%clk 0:02:09]} 17. Nxc5 {[%clk 0:01:54]}  Ndf7 {[%clk 0:02:10]} 18. Ncxe6 {[%clk 0:01:41]}  h6 {[%clk 0:01:48]} 19. Nxf7 {[%clk 0:01:40]}  Bxe6 {[%clk 0:01:39]} 20. Nxe5 {[%clk 0:01:39]} 1-0


[Site "https://www.chess.com"]